[Event "Late-Titled-Tuesday-Blitz-October-10-2023"]
[Site "Chess.com"]
[Date "2023.10.10"]
[Round "4"]
[White "Battever"]
[Black "cassoulet"]
[Result "0-1"]
[WhiteElo "2516"]
[BlackElo "2755"]
[TimeControl "180+1"]
[EndTime "14:35:28 PDT"]
[Termination "cassoulet won by resignation"]

1. Nf3 {[%clk 0:03:00.9]} 1... Nf6 {[%clk 0:02:21.5]} 2. g3 {[%clk 0:03:00.5]}
2... g6 {[%clk 0:02:19.5]} 3. b3 {[%clk 0:03:00.7]} 3... Bg7 {[%clk 0:02:20]} 4.
Bb2 {[%clk 0:03:01.4]} 4... O-O {[%clk 0:02:20.6]} 5. Bg2 {[%clk 0:03:02.1]}
5... d6 {[%clk 0:02:21.3]} 6. d4 {[%clk 0:03:02.6]} 6... Nbd7 {[%clk 0:02:21.9]}
7. O-O {[%clk 0:03:03.2]} 7... a6 {[%clk 0:02:22.6]} 8. Re1 {[%clk 0:02:56.8]}
8... c5 {[%clk 0:02:22.9]} 9. d5 {[%clk 0:02:47]} 9... b5 {[%clk 0:02:22.5]} 10.
e4 {[%clk 0:02:46.9]} 10... Bb7 {[%clk 0:02:21.5]} 11. c4 {[%clk 0:02:37.1]}
11... bxc4 {[%clk 0:02:22.4]} 12. bxc4 {[%clk 0:02:36.9]} 12... a5 {[%clk
0:02:23.1]} 13. Nc3 {[%clk 0:02:33.1]} 13... Ba6 {[%clk 0:02:23.4]} 14. Nb5
{[%clk 0:02:29.5]} 14... Nb6 {[%clk 0:02:23.4]} 15. e5 {[%clk 0:02:15.7]} 15...
Nxc4 {[%clk 0:02:15.3]} 16. exf6 {[%clk 0:02:14.5]} 16... Nxb2 {[%clk
0:02:15.5]} 17. fxg7 {[%clk 0:00:33.2]} 17... Nxd1 {[%clk 0:02:13.3]} 18.
gxf8=Q+ {[%clk 0:00:33.3]} 18... Kxf8 {[%clk 0:02:12.8]} 19. a4 {[%clk
0:00:25.7]} 19... Nb2 {[%clk 0:02:06]} 20. Ng5 {[%clk 0:00:22]} 20... h6 {[%clk
0:02:02.2]} 21. Ne4 {[%clk 0:00:18.9]} 21... Nd3 {[%clk 0:01:56.6]} 22. Re3
{[%clk 0:00:17.7]} 22... Ne5 {[%clk 0:01:51.7]} 23. Rae1 {[%clk 0:00:17.7]}
23... Bxb5 {[%clk 0:01:49.7]} 24. axb5 {[%clk 0:00:17.9]} 24... Rb8 {[%clk
0:01:50.1]} 25. Nc3 {[%clk 0:00:16.5]} 25... Rb7 {[%clk 0:01:47.7]} 26. f4
{[%clk 0:00:16.1]} 26... Ng4 {[%clk 0:01:47.5]} 27. R3e2 {[%clk 0:00:15.9]}
27... c4 {[%clk 0:01:44.7]} 28. h3 {[%clk 0:00:13]} 28... Qb6+ {[%clk
0:01:44.3]} 29. Kh1 {[%clk 0:00:13.5]} 29... Nf2+ {[%clk 0:01:44]} 30. Kh2
{[%clk 0:00:13.6]} 30... Nd3 {[%clk 0:01:44.2]} 31. Rd1 {[%clk 0:00:12.7]} 31...
h5 {[%clk 0:01:42.3]} 32. Be4 {[%clk 0:00:12.8]} 32... Nf2 {[%clk 0:01:40.5]}
33. Rde1 {[%clk 0:00:11.7]} 33... Nxe4 {[%clk 0:01:38.1]} 34. Rxe4 {[%clk
0:00:12.6]} 34... Qf2+ {[%clk 0:01:37.7]} 35. Kh1 {[%clk 0:00:13.2]} 35... Qf3+
{[%clk 0:01:37.7]} 36. Kh2 {[%clk 0:00:13.1]} 36... Qxc3 {[%clk 0:01:38.6]} 37.
R4e3 {[%clk 0:00:11.3]} 37... Qb2+ {[%clk 0:01:37.3]} 38. R3e2 {[%clk
0:00:11.2]} 38... Qxb5 {[%clk 0:01:38.2]} 0-1

[Event "Late-Titled-Tuesday-Blitz-October-10-2023"]
[Site "Chess.com"]
[Date "2023.10.10"]
[Round "4"]
[White "Javylavilla"]
[Black "cande_francisco"]
[Result "0-1"]
[WhiteElo "2362"]
[BlackElo "2542"]
[TimeControl "180+1"]
[EndTime "14:35:30 PDT"]
[Termination "cande_francisco won by checkmate"]

1. e4 {[%clk 0:03:00.9]} 1... c5 {[%clk 0:02:59.9]} 2. Nf3 {[%clk 0:03:00.2]}
2... g6 {[%clk 0:03:00.3]} 3. d4 {[%clk 0:03:00]} 3... cxd4 {[%clk 0:03:01.2]}
4. Qxd4 {[%clk 0:03:00.3]} 4... Nf6 {[%clk 0:03:01.4]} 5. e5 {[%clk 0:03:00.9]}
5... Nc6 {[%clk 0:03:02]} 6. Qa4 {[%clk 0:03:01.5]} 6... Nd5 {[%clk 0:03:02.6]}
7. Qe4 {[%clk 0:03:02.2]} 7... Ndb4 {[%clk 0:03:00.1]} 8. Bb5 {[%clk 0:03:01.3]}
8... Bg7 {[%clk 0:02:53.2]} 9. a3 {[%clk 0:02:49.4]} 9... Na6 {[%clk 0:02:53.3]}
10. Bf4 {[%clk 0:02:44.4]} 10... Nc7 {[%clk 0:02:51.5]} 11. Ba4 {[%clk
0:02:42.8]} 11... O-O {[%clk 0:02:51.4]} 12. O-O {[%clk 0:02:41.7]} 12... b5
{[%clk 0:02:47.7]} 13. Bb3 {[%clk 0:02:40.8]} 13... Bb7 {[%clk 0:02:48]} 14. Qe2
{[%clk 0:02:39.4]} 14... a5 {[%clk 0:02:35.9]} 15. Nc3 {[%clk 0:02:36.5]} 15...
Ba6 {[%clk 0:02:36.1]} 16. Qd2 {[%clk 0:02:07.8]} 16... Ne6 {[%clk 0:02:27.4]}
17. Bg3 {[%clk 0:02:06.7]} 17... b4 {[%clk 0:02:16.6]} 18. Ne2 {[%clk
0:02:05.8]} 18... Nc5 {[%clk 0:02:06.9]} 19. Bd5 {[%clk 0:02:03.6]} 19... e6
{[%clk 0:02:03.5]} 20. Ba2 {[%clk 0:01:50.6]} 20... Ne4 {[%clk 0:02:00.4]} 21.
Qe3 {[%clk 0:01:46.7]} 21... Nxg3 {[%clk 0:02:00.1]} 22. hxg3 {[%clk 0:01:47.3]}
22... Qc7 {[%clk 0:01:58.1]} 23. Rfd1 {[%clk 0:01:45.8]} 23... Nxe5 {[%clk
0:01:55.5]} 24. Nxe5 {[%clk 0:01:33.6]} 24... Bxe5 {[%clk 0:01:55.4]} 25. Nd4
{[%clk 0:01:31.3]} 25... d5 {[%clk 0:01:52.3]} 26. axb4 {[%clk 0:01:27.6]} 26...
axb4 {[%clk 0:01:52.2]} 27. Bb3 {[%clk 0:01:28.4]} 27... Bg7 {[%clk 0:01:43.5]}
28. Nxe6 {[%clk 0:01:26.8]} 28... fxe6 {[%clk 0:01:27.6]} 29. Qxe6+ {[%clk
0:01:27.7]} 29... Kh8 {[%clk 0:01:24.6]} 30. Rxa6 {[%clk 0:01:27.7]} 30... Rae8
{[%clk 0:00:59.2]} 31. Qxd5 {[%clk 0:01:24.8]} 31... Bxb2 {[%clk 0:00:47.5]} 32.
Rd6 {[%clk 0:01:14]} 32... Be5 {[%clk 0:00:34]} 33. Rd7 {[%clk 0:01:13]} 33...
Qb6 {[%clk 0:00:34.1]} 34. Rd2 {[%clk 0:01:08]} 34... Bxg3 {[%clk 0:00:31.7]}
35. Rb7 {[%clk 0:01:04.1]} 35... Re1# {[%clk 0:00:31.6]} 0-1

[Event "Late-Titled-Tuesday-Blitz-October-10-2023"]
[Site "Chess.com"]
[Date "2023.10.10"]
[Round "4"]
[White "ItalianMachine"]
[Black "elcala"]
[Result "1-0"]
[WhiteElo "2414"]
[BlackElo "1748"]
[TimeControl "180+1"]
[EndTime "14:35:30 PDT"]
[Termination "ItalianMachine won by resignation"]

1. e4 {[%clk 0:02:57.2]} 1... d5 {[%clk 0:02:57.4]} 2. exd5 {[%clk 0:02:57]}
2... Qxd5 {[%clk 0:02:58.3]} 3. Nc3 {[%clk 0:02:57.3]} 3... Qd6 {[%clk
0:02:58.9]} 4. d4 {[%clk 0:02:57.9]} 4... Nf6 {[%clk 0:02:59]} 5. Nf3 {[%clk
0:02:58.5]} 5... Bg4 {[%clk 0:02:58]} 6. Bc4 {[%clk 0:02:58.4]} 6... e6 {[%clk
0:02:58]} 7. h3 {[%clk 0:02:57.6]} 7... Bh5 {[%clk 0:02:56.7]} 8. g4 {[%clk
0:02:56.9]} 8... Bg6 {[%clk 0:02:56.4]} 9. Qe2 {[%clk 0:02:52.3]} 9... Nc6
{[%clk 0:02:51.7]} 10. Nb5 {[%clk 0:02:50.3]} 10... Qd7 {[%clk 0:02:49.9]} 11.
Bf4 {[%clk 0:02:50.5]} 11... Rc8 {[%clk 0:02:44.4]} 12. Ne5 {[%clk 0:02:47.2]}
12... Nxe5 {[%clk 0:02:37.3]} 13. dxe5 {[%clk 0:02:47.5]} 13... Nd5 {[%clk
0:02:37.5]} 14. Bg3 {[%clk 0:02:32.1]} 14... a6 {[%clk 0:02:33.3]} 15. Nd4
{[%clk 0:02:29.6]} 15... Bc5 {[%clk 0:02:27.1]} 16. Nb3 {[%clk 0:02:27.3]} 16...
Bb6 {[%clk 0:02:20.5]} 17. O-O-O {[%clk 0:02:27.1]} 17... O-O {[%clk 0:02:17.1]}
18. f4 {[%clk 0:02:26.2]} 18... Qa4 {[%clk 0:02:09.8]} 19. Bxd5 {[%clk
0:02:24.1]} 19... exd5 {[%clk 0:02:07.3]} 20. f5 {[%clk 0:02:24.5]} 20... c5
{[%clk 0:02:00.8]} 21. fxg6 {[%clk 0:02:05.7]} 21... Qxa2 {[%clk 0:01:57.9]} 22.
gxh7+ {[%clk 0:02:05.4]} 22... Kh8 {[%clk 0:01:56.7]} 23. Nd2 {[%clk 0:01:29]}
23... c4 {[%clk 0:01:16.1]} 24. c3 {[%clk 0:01:28.6]} 24... Ba5 {[%clk
0:00:57.5]} 25. Nb1 {[%clk 0:01:25.7]} 25... b5 {[%clk 0:00:52.4]} 26. Rxd5
{[%clk 0:01:21.1]} 26... b4 {[%clk 0:00:50.7]} 27. Qc2 {[%clk 0:01:17.4]} 27...
b3 {[%clk 0:00:43.5]} 28. Qf5 {[%clk 0:01:13.9]} 28... Bxc3 {[%clk 0:00:42.2]}
29. Nxc3 {[%clk 0:01:13.7]} 29... Qa1+ {[%clk 0:00:41.5]} 30. Qb1 {[%clk
0:01:14]} 30... Qxb1+ {[%clk 0:00:37.8]} 31. Kxb1 {[%clk 0:01:14.9]} 31... Kxh7
{[%clk 0:00:34.4]} 32. Rf1 {[%clk 0:01:10.8]} 32... Rfe8 {[%clk 0:00:22.4]} 33.
Rxf7 {[%clk 0:01:09.8]} 1-0

[Event "Late-Titled-Tuesday-Blitz-October-10-2023"]
[Site "Chess.com"]
[Date "2023.10.10"]
[Round "4"]
[White "rasmussvane"]
[Black "mbojan"]
[Result "1-0"]
[WhiteElo "3006"]
[BlackElo "2780"]
[TimeControl "180+1"]
[EndTime "14:35:32 PDT"]
[Termination "rasmussvane won on time"]

1. Nf3 {[%clk 0:03:00.9]} 1... g6 {[%clk 0:02:58.8]} 2. e4 {[%clk 0:02:56.2]}
2... Bg7 {[%clk 0:02:57.7]} 3. d4 {[%clk 0:02:56.6]} 3... d6 {[%clk 0:02:56.1]}
4. Bd3 {[%clk 0:02:55.8]} 4... Nc6 {[%clk 0:02:53.9]} 5. d5 {[%clk 0:02:50.1]}
5... Nb8 {[%clk 0:02:48.6]} 6. h3 {[%clk 0:02:46.6]} 6... Nf6 {[%clk 0:02:47.8]}
7. O-O {[%clk 0:02:46.8]} 7... O-O {[%clk 0:02:47.7]} 8. Re1 {[%clk 0:02:42.9]}
8... c6 {[%clk 0:02:47]} 9. c4 {[%clk 0:02:41.3]} 9... Nbd7 {[%clk 0:02:41.6]}
10. Nc3 {[%clk 0:02:40.2]} 10... Nh5 {[%clk 0:02:25.1]} 11. Bg5 {[%clk
0:02:36.8]} 11... Ne5 {[%clk 0:02:20.6]} 12. Nxe5 {[%clk 0:02:32.6]} 12... Bxe5
{[%clk 0:02:19.7]} 13. Qd2 {[%clk 0:02:32.4]} 13... Qa5 {[%clk 0:02:04.3]} 14.
Bxe7 {[%clk 0:02:17.8]} 14... Re8 {[%clk 0:02:03.9]} 15. Bg5 {[%clk 0:02:17.9]}
15... f6 {[%clk 0:01:54.5]} 16. Be3 {[%clk 0:02:16.8]} 16... Bxc3 {[%clk
0:01:49]} 17. bxc3 {[%clk 0:02:11.2]} 17... c5 {[%clk 0:01:46.5]} 18. f4 {[%clk
0:02:07.9]} 18... Bd7 {[%clk 0:01:21.7]} 19. Bf2 {[%clk 0:02:07.5]} 19... Ng7
{[%clk 0:01:12.9]} 20. Bh4 {[%clk 0:02:04.7]} 20... Rf8 {[%clk 0:01:13.2]} 21.
e5 {[%clk 0:01:56.8]} 21... fxe5 {[%clk 0:01:07]} 22. fxe5 {[%clk 0:01:57.7]}
22... dxe5 {[%clk 0:01:02.2]} 23. Rxe5 {[%clk 0:01:58.6]} 23... Nf5 {[%clk
0:01:01.6]} 24. Bxf5 {[%clk 0:01:42.8]} 24... Bxf5 {[%clk 0:00:56.9]} 25. Re7
{[%clk 0:01:42.2]} 25... Rae8 {[%clk 0:00:47.6]} 26. Rae1 {[%clk 0:01:25.2]}
26... Rxe7 {[%clk 0:00:47.8]} 27. Rxe7 {[%clk 0:01:24.8]} 27... Rf7 {[%clk
0:00:47.8]} 28. d6 {[%clk 0:01:23.7]} 28... Qa4 {[%clk 0:00:15.9]} 29. Qd5
{[%clk 0:01:14.7]} 1-0

[Event "Late-Titled-Tuesday-Blitz-October-10-2023"]
[Site "Chess.com"]
[Date "2023.10.10"]
[Round "4"]
[White "cthulhuuu"]
[Black "WDCH"]
[Result "0-1"]
[WhiteElo "2465"]
[BlackElo "2725"]
[TimeControl "180+1"]
[EndTime "14:35:37 PDT"]
[Termination "WDCH won by resignation"]

1. e4 {[%clk 0:03:00]} 1... c5 {[%clk 0:02:59.1]} 2. Nf3 {[%clk 0:02:59.8]} 2...
d6 {[%clk 0:02:59]} 3. g3 {[%clk 0:03:00.2]} 3... Nc6 {[%clk 0:02:56.2]} 4. Bg2
{[%clk 0:03:00.8]} 4... Nf6 {[%clk 0:02:56]} 5. d3 {[%clk 0:03:01.1]} 5... g6
{[%clk 0:02:56]} 6. O-O {[%clk 0:03:01.9]} 6... Bg7 {[%clk 0:02:56.7]} 7. Re1
{[%clk 0:03:02.5]} 7... O-O {[%clk 0:02:57.4]} 8. e5 {[%clk 0:03:03.4]} 8... Ne8
{[%clk 0:02:50.2]} 9. exd6 {[%clk 0:03:03.2]} 9... Nxd6 {[%clk 0:02:49.9]} 10.
Nc3 {[%clk 0:03:01.3]} 10... Nf5 {[%clk 0:02:48.1]} 11. Ne4 {[%clk 0:02:59.3]}
11... b6 {[%clk 0:02:48.1]} 12. h4 {[%clk 0:02:58.4]} 12... Bb7 {[%clk
0:02:47.5]} 13. h5 {[%clk 0:02:58.4]} 13... Qd7 {[%clk 0:02:44.2]} 14. c3 {[%clk
0:02:41]} 14... Rad8 {[%clk 0:02:43.7]} 15. g4 {[%clk 0:01:51.2]} 15... Nd6
{[%clk 0:02:33.1]} 16. h6 {[%clk 0:01:51.7]} 16... Bh8 {[%clk 0:02:26.6]} 17.
Nfg5 {[%clk 0:01:51.8]} 17... Nxe4 {[%clk 0:02:23.5]} 18. Bxe4 {[%clk
0:01:45.3]} 18... Ne5 {[%clk 0:02:23.2]} 19. f3 {[%clk 0:00:59.3]} 19... Bxe4
{[%clk 0:02:20.1]} 20. Rxe4 {[%clk 0:00:48]} 20... Qxd3 {[%clk 0:02:13.1]} 21.
Qxd3 {[%clk 0:00:37.7]} 21... Rxd3 {[%clk 0:02:14]} 22. Kg2 {[%clk 0:00:35.6]}
22... Bf6 {[%clk 0:01:45.1]} 23. Bf4 {[%clk 0:00:24]} 23... Nc6 {[%clk
0:01:37.7]} 24. Nh3 {[%clk 0:00:19.8]} 24... Rfd8 {[%clk 0:01:33]} 25. g5 {[%clk
0:00:19.2]} 25... Bh8 {[%clk 0:01:31.8]} 26. Nf2 {[%clk 0:00:19.9]} 26... R3d5
{[%clk 0:01:31.1]} 27. Rae1 {[%clk 0:00:20.1]} 27... e6 {[%clk 0:01:30.8]} 28.
Ng4 {[%clk 0:00:20.5]} 28... Kf8 {[%clk 0:01:26.1]} 29. Kg3 {[%clk 0:00:19.8]}
29... Ke7 {[%clk 0:01:25.9]} 30. b3 {[%clk 0:00:17.6]} 30... Bxc3 {[%clk
0:01:24.9]} 31. R1e2 {[%clk 0:00:16.1]} 31... a5 {[%clk 0:01:24.1]} 32. Ne5
{[%clk 0:00:14.9]} 32... Nxe5 {[%clk 0:01:24]} 33. Bxe5 {[%clk 0:00:15.4]} 33...
Bxe5+ {[%clk 0:01:24.6]} 34. Rxe5 {[%clk 0:00:16.1]} 34... Rxe5 {[%clk
0:01:25.4]} 35. Rxe5 {[%clk 0:00:16.6]} 35... Rd5 {[%clk 0:01:26.1]} 36. Re2
{[%clk 0:00:16.6]} 36... Rxg5+ {[%clk 0:01:26.2]} 0-1

[Event "Late-Titled-Tuesday-Blitz-October-10-2023"]
[Site "Chess.com"]
[Date "2023.10.10"]
[Round "4"]
[White "midedu"]
[Black "Dontmesswithme_2"]
[Result "0-1"]
[WhiteElo "2067"]
[BlackElo "2421"]
[TimeControl "180+1"]
[EndTime "14:35:40 PDT"]
[Termination "Dontmesswithme_2 won by resignation"]

1. e4 {[%clk 0:03:00.9]} 1... c5 {[%clk 0:02:58.1]} 2. Nc3 {[%clk 0:03:00.5]}
2... d6 {[%clk 0:02:57.7]} 3. g3 {[%clk 0:03:01.1]} 3... Nc6 {[%clk 0:02:57.8]}
4. Bg2 {[%clk 0:03:01.8]} 4... g6 {[%clk 0:02:58.2]} 5. Nge2 {[%clk 0:03:02.5]}
5... Bg7 {[%clk 0:02:58.6]} 6. O-O {[%clk 0:03:03.1]} 6... e6 {[%clk 0:02:58.6]}
7. h3 {[%clk 0:03:03.7]} 7... Nge7 {[%clk 0:02:57.7]} 8. d3 {[%clk 0:03:04.4]}
8... O-O {[%clk 0:02:57.9]} 9. Be3 {[%clk 0:03:05]} 9... Nd4 {[%clk 0:02:58.2]}
10. Qd2 {[%clk 0:03:05.6]} 10... Rb8 {[%clk 0:02:57.9]} 11. f4 {[%clk
0:03:00.1]} 11... b5 {[%clk 0:02:54.3]} 12. Nd1 {[%clk 0:02:59.1]} 12... b4
{[%clk 0:02:50.2]} 13. g4 {[%clk 0:02:58.6]} 13... f5 {[%clk 0:02:48.7]} 14. Ng3
{[%clk 0:02:57.1]} 14... Ba6 {[%clk 0:02:02.4]} 15. c3 {[%clk 0:02:53.5]} 15...
Nb5 {[%clk 0:01:54.6]} 16. gxf5 {[%clk 0:02:33.6]} 16... exf5 {[%clk 0:01:53.9]}
17. exf5 {[%clk 0:02:32.2]} 17... Nxf5 {[%clk 0:01:54]} 18. Nxf5 {[%clk
0:02:31.6]} 18... Rxf5 {[%clk 0:01:53.7]} 19. Be4 {[%clk 0:02:29.6]} 19... Rh5
{[%clk 0:01:46.2]} 20. cxb4 {[%clk 0:02:06.7]} 20... Rxh3 {[%clk 0:01:25.6]} 21.
bxc5 {[%clk 0:02:02.7]} 21... dxc5 {[%clk 0:01:05.8]} 22. Bxc5 {[%clk
0:01:53.4]} 22... Nd4 {[%clk 0:00:54.5]} 23. Rc1 {[%clk 0:01:32.7]} 23... Qh4
{[%clk 0:00:49.9]} 24. Rf2 {[%clk 0:01:13.5]} 24... Bb7 {[%clk 0:00:45.7]} 25.
Qb4 {[%clk 0:00:23.1]} 25... Rh1+ {[%clk 0:00:42.1]} 0-1

[Event "Late-Titled-Tuesday-Blitz-October-10-2023"]
[Site "Chess.com"]
[Date "2023.10.10"]
[Round "4"]
[White "Qvalda"]
[Black "Rutricks"]
[Result "0-1"]
[WhiteElo "2393"]
[BlackElo "2669"]
[TimeControl "180+1"]
[EndTime "14:35:43 PDT"]
[Termination "Rutricks won by resignation"]

1. Nf3 {[%clk 0:03:00.9]} 1... g6 {[%clk 0:02:59.4]} 2. e4 {[%clk 0:03:00.3]}
2... Bg7 {[%clk 0:03:00.3]} 3. d4 {[%clk 0:02:59.7]} 3... c6 {[%clk 0:02:58.8]}
4. Nc3 {[%clk 0:02:56.3]} 4... d5 {[%clk 0:02:59.7]} 5. h3 {[%clk 0:02:55.7]}
5... dxe4 {[%clk 0:02:57.9]} 6. Nxe4 {[%clk 0:02:56.6]} 6... Nf6 {[%clk
0:02:58.8]} 7. Nxf6+ {[%clk 0:02:55.5]} 7... exf6 {[%clk 0:02:59.7]} 8. Bd3
{[%clk 0:02:51.8]} 8... O-O {[%clk 0:03:00.6]} 9. Be3 {[%clk 0:02:48]} 9... a5
{[%clk 0:03:01.5]} 10. O-O {[%clk 0:02:46.6]} 10... Na6 {[%clk 0:03:01.6]} 11.
a3 {[%clk 0:02:46.2]} 11... Nc7 {[%clk 0:03:01.4]} 12. c4 {[%clk 0:02:45.6]}
12... Re8 {[%clk 0:03:02.3]} 13. Qc2 {[%clk 0:02:44.3]} 13... Be6 {[%clk
0:03:00.5]} 14. Rfd1 {[%clk 0:02:40.7]} 14... Qd7 {[%clk 0:03:00.6]} 15. Bf1
{[%clk 0:02:39.4]} 15... Bf5 {[%clk 0:03:00.1]} 16. Qc3 {[%clk 0:02:35.2]} 16...
a4 {[%clk 0:02:57.7]} 17. d5 {[%clk 0:01:55.3]} 17... cxd5 {[%clk 0:02:54.2]}
18. cxd5 {[%clk 0:01:56.2]} 18... Be4 {[%clk 0:02:31.7]} 19. d6 {[%clk
0:01:46.8]} 19... Nd5 {[%clk 0:02:30.6]} 20. Qc5 {[%clk 0:01:19.8]} 20... Nxe3
{[%clk 0:02:12.7]} 21. Qxe3 {[%clk 0:01:08.6]} 21... Bc2 {[%clk 0:02:06.6]} 22.
Qb6 {[%clk 0:01:08.1]} 22... Bxd1 {[%clk 0:02:05.5]} 23. Rxd1 {[%clk 0:01:09]}
23... Red8 {[%clk 0:01:26.6]} 24. Bb5 {[%clk 0:01:00.9]} 24... Qe6 {[%clk
0:01:25.5]} 25. Qxb7 {[%clk 0:00:53.7]} 25... Rab8 {[%clk 0:01:25.4]} 26. Qc7
{[%clk 0:00:51.7]} 26... Qb3 {[%clk 0:01:00.8]} 27. Bc4 {[%clk 0:00:11.7]} 27...
Qxd1+ {[%clk 0:00:59.8]} 28. Kh2 {[%clk 0:00:12.4]} 28... Qxd6+ {[%clk
0:01:00.2]} 0-1

[Event "Late-Titled-Tuesday-Blitz-October-10-2023"]
[Site "Chess.com"]
[Date "2023.10.10"]
[Round "4"]
[White "hellokostya"]
[Black "Nick12772"]
[Result "1-0"]
[WhiteElo "2631"]
[BlackElo "2406"]
[TimeControl "180+1"]
[EndTime "14:35:52 PDT"]
[Termination "hellokostya won by resignation"]

1. Nf3 {[%clk 0:03:00.9]} 1... Nf6 {[%clk 0:02:58.5]} 2. c4 {[%clk 0:02:59.7]}
2... c6 {[%clk 0:02:58.4]} 3. e3 {[%clk 0:02:55.1]} 3... d5 {[%clk 0:02:58.6]}
4. Nc3 {[%clk 0:02:55.8]} 4... g6 {[%clk 0:02:58.8]} 5. d4 {[%clk 0:02:55.6]}
5... Bg7 {[%clk 0:02:59.4]} 6. Be2 {[%clk 0:02:56.2]} 6... O-O {[%clk
0:02:59.6]} 7. O-O {[%clk 0:02:56.8]} 7... Re8 {[%clk 0:02:50.7]} 8. Bd2 {[%clk
0:02:52.1]} 8... Bg4 {[%clk 0:02:45.3]} 9. Qb3 {[%clk 0:02:45.4]} 9... b6 {[%clk
0:02:35]} 10. h3 {[%clk 0:02:38.5]} 10... Bxf3 {[%clk 0:02:35]} 11. Bxf3 {[%clk
0:02:39.4]} 11... e6 {[%clk 0:02:33.7]} 12. a4 {[%clk 0:02:35.3]} 12... Nbd7
{[%clk 0:02:20.6]} 13. a5 {[%clk 0:02:34.1]} 13... bxa5 {[%clk 0:01:58.5]} 14.
Qa4 {[%clk 0:02:28.9]} 14... Nb6 {[%clk 0:01:51.6]} 15. Qxc6 {[%clk 0:02:18.4]}
15... Nxc4 {[%clk 0:01:50.5]} 16. Bc1 {[%clk 0:02:13.9]} 16... Bf8 {[%clk
0:01:23.3]} 17. b3 {[%clk 0:02:05.5]} 17... Bb4 {[%clk 0:01:23.2]} 18. Na2
{[%clk 0:01:58.4]} 18... Nd6 {[%clk 0:01:08.6]} 19. Nxb4 {[%clk 0:01:55.9]}
19... axb4 {[%clk 0:01:09.5]} 20. Bd2 {[%clk 0:01:53.8]} 20... a5 {[%clk
0:01:09.1]} 21. Rfc1 {[%clk 0:01:51.8]} 21... Nde4 {[%clk 0:01:06.7]} 22. Be1
{[%clk 0:01:47.3]} 22... Rc8 {[%clk 0:00:55]} 23. Qb5 {[%clk 0:01:43.9]} 23...
Ra8 {[%clk 0:00:42.1]} 24. Be2 {[%clk 0:01:38.6]} 24... Nd6 {[%clk 0:00:32]} 25.
Qa4 {[%clk 0:01:35.8]} 25... Nfe4 {[%clk 0:00:28.4]} 26. f3 {[%clk 0:01:33.1]}
26... Nf6 {[%clk 0:00:25.3]} 27. Bg3 {[%clk 0:01:30.4]} 27... Nf5 {[%clk
0:00:25.1]} 28. Bf2 {[%clk 0:01:28.8]} 28... Qd7 {[%clk 0:00:20.5]} 29. Rc5
{[%clk 0:01:26.1]} 29... Qxa4 {[%clk 0:00:20.3]} 30. Rxa4 {[%clk 0:01:27]} 30...
Nd7 {[%clk 0:00:15.7]} 31. Rcxa5 {[%clk 0:01:22]} 31... Rxa5 {[%clk 0:00:16.6]}
32. Rxa5 {[%clk 0:01:22.5]} 32... Rb8 {[%clk 0:00:15]} 33. e4 {[%clk 0:01:18.2]}
33... dxe4 {[%clk 0:00:14.7]} 34. fxe4 {[%clk 0:01:19.1]} 34... Nd6 {[%clk
0:00:13.5]} 35. Bg3 {[%clk 0:01:19.2]} 35... Rb6 {[%clk 0:00:08.7]} 36. Ra7
{[%clk 0:01:18.3]} 36... Nf6 {[%clk 0:00:05.7]} 37. Bxd6 {[%clk 0:01:14]} 37...
Rxd6 {[%clk 0:00:03.7]} 38. e5 {[%clk 0:01:14.5]} 38... Rxd4 {[%clk 0:00:02.4]}
39. exf6 {[%clk 0:01:14.3]} 39... Rd8 {[%clk 0:00:03.2]} 40. Rb7 {[%clk
0:01:10.4]} 1-0

[Event "Late-Titled-Tuesday-Blitz-October-10-2023"]
[Site "Chess.com"]
[Date "2023.10.10"]
[Round "4"]
[White "FM_Kappeler"]
[Black "Lion-Al-Messi"]
[Result "1-0"]
[WhiteElo "2335"]
[BlackElo "2626"]
[TimeControl "180+1"]
[EndTime "14:35:57 PDT"]
[Termination "FM_Kappeler won by resignation"]

1. d4 {[%clk 0:03:00.9]} 1... d5 {[%clk 0:02:57.1]} 2. c4 {[%clk 0:03:00.8]}
2... c6 {[%clk 0:02:56.8]} 3. Nf3 {[%clk 0:03:00.7]} 3... Nf6 {[%clk 0:02:56.4]}
4. e3 {[%clk 0:03:00.7]} 4... e6 {[%clk 0:02:55.5]} 5. b3 {[%clk 0:03:00.7]}
5... Nbd7 {[%clk 0:02:53.7]} 6. Bb2 {[%clk 0:03:00.4]} 6... Bb4+ {[%clk
0:02:47.4]} 7. Nbd2 {[%clk 0:02:59.5]} 7... Ne4 {[%clk 0:02:46.1]} 8. Bd3 {[%clk
0:02:59.2]} 8... f5 {[%clk 0:02:45.2]} 9. O-O {[%clk 0:02:58.1]} 9... O-O {[%clk
0:02:43.8]} 10. a4 {[%clk 0:02:42.5]} 10... g5 {[%clk 0:02:33.6]} 11. Ba3 {[%clk
0:02:36]} 11... Qe7 {[%clk 0:02:24.7]} 12. Bxb4 {[%clk 0:02:34.4]} 12... Qxb4
{[%clk 0:02:25.6]} 13. Bxe4 {[%clk 0:02:23.7]} 13... dxe4 {[%clk 0:02:12.4]} 14.
Nxg5 {[%clk 0:02:23.3]} 14... Nf6 {[%clk 0:02:08]} 15. f3 {[%clk 0:02:04.9]}
15... h6 {[%clk 0:01:44.3]} 16. Nh3 {[%clk 0:02:03.4]} 16... Bd7 {[%clk
0:01:44.9]} 17. fxe4 {[%clk 0:02:00.1]} 17... fxe4 {[%clk 0:01:41.1]} 18. Nf4
{[%clk 0:01:45.2]} 18... Rf7 {[%clk 0:01:38.8]} 19. Ng6 {[%clk 0:01:42.8]} 19...
Be8 {[%clk 0:01:15.1]} 20. Ne5 {[%clk 0:01:42]} 20... Rf8 {[%clk 0:01:15.3]} 21.
Rf4 {[%clk 0:01:35.2]} 21... Bh5 {[%clk 0:01:13.5]} 22. Qc2 {[%clk 0:01:32.5]}
22... c5 {[%clk 0:00:46.9]} 23. Raf1 {[%clk 0:01:17.1]} 23... Kg7 {[%clk
0:00:44]} 24. Nxe4 {[%clk 0:01:15.4]} 24... Nxe4 {[%clk 0:00:43.2]} 25. Qxe4
{[%clk 0:01:02.7]} 25... Qd2 {[%clk 0:00:37.7]} 26. Nd7 {[%clk 0:00:50.1]} 26...
Rf5 {[%clk 0:00:11.7]} 27. Rxf5 {[%clk 0:00:45.5]} 27... exf5 {[%clk 0:00:12.6]}
28. Qe5+ {[%clk 0:00:45.4]} 28... Kg8 {[%clk 0:00:08.5]} 29. Nf6+ {[%clk
0:00:44.3]} 1-0